bitfinex/quotes_SOLUSD_20241226
["timestamp","ask_amount","ask_price","bid_price","bid_amount"]
[1735243001633,6.3849,189.31,189.25,7.82002121]
[1735243003736,20.0,189.28,189.26,7.82002121]
[1735243005564,6.3849,189.31,189.27,7.82002121]
[1735243006346,6.3849,189.31,189.26,7.82002121]
[1735243006938,1.5808,189.32,189.27,7.82002121]
[1735243007145,20.0,189.31,189.29,7.82002121]
[1735243007354,6.0464,189.35,189.29,7.82002121]
[1735243008931,7.82002121,189.34,189.21,26.77742538]
[1735243009132,7.82002121,189.34,189.28,7.82002121]
[1735243009941,7.82002121,189.34,189.27,7.82002121]
[1735243011556,6.0464,189.35,189.29,7.82002121]
[1735243011754,20.0,189.36,189.31,7.82002121]
[1735243011963,20.0,189.34,189.31,7.82002121]
[1735243012157,20.0,189.34,189.3,7.82002121]
[1735243013835,20.0,189.34,189.29,7.82002121]
[1735243016156,20.0,189.34,189.3,7.82002121]
[1735243016374,20.0,189.36,189.3,7.82002121]
[1735243016755,20.0,189.34,189.3,7.82002121]
[1735243018038,20.0,189.34,189.31,7.82002121]
[1735243018270,20.0,189.36,189.33,7.82002121]
[1735243018771,20.0,189.36,189.32,7.82002121]
[1735243019565,20.0,189.36,189.33,7.82002121]
[1735243021864,20.0,189.36,189.32,7.82002121]
[1735243023171,20.0,189.4,189.33,7.82002121]
[1735243023357,27.82002121,189.4,189.33,7.82002121]
[1735243023555,7.82002121,189.39,189.33,7.82002121]
[1735243023776,20.0,189.36,189.32,7.82002121]
[1735243024369,7.82002121,189.38,189.32,7.82002121]
[1735243024868,7.82002121,189.37,189.25,2.44460045]
[1735243025044,7.82002121,189.33,189.25,1.6524]
[1735243025242,7.82002121,189.32,189.26,7.82002121]
[1735243025557,7.82002121,189.31,189.25,7.82002121]
[1735243026265,7.82002121,189.29,189.23,7.82002121]
[1735243026446,23.776884,189.36,189.23,7.82002121]
[1735243026646,7.82002121,189.3,189.24,7.82002121]
[1735243027254,20.0,189.32,189.26,7.82002121]
[1735243027573,20.0,189.3,189.26,7.82002121]
[1735243027778,20.0,189.32,189.28,7.82002121]
[1735243028078,13.01230057,189.35,189.28,7.82002121]
[1735243028245,7.82002121,189.34,189.27,7.82002121]
[1735243029074,13.01230057,189.35,189.28,7.82002121]
[1735243029370,6.6031,189.37,189.29,7.82002121]
[1735243029576,6.6031,189.37,189.22,24.69480538]
[1735243029577,14.42312121,189.37,189.3,7.82002121]
[1735243030147,6.6031,189.37,189.31,7.82002121]
[1735243030384,7.82002121,189.38,189.32,7.82002121]
[1735243032072,7.82002121,189.33,189.23,1.552]
[1735243032266,7.82002121,189.33,189.26,7.82002121]
[1735243033372,7.82002121,189.33,189.27,7.82002121]
[1735243034383,7.82002121,189.33,189.26,7.82002121]
[1735243035185,7.82002121,189.32,189.26,7.82002121]
[1735243035684,7.82002121,189.32,189.24,0.12549]
[1735243035685,7.82002121,189.32,189.25,7.82002121]
[1735243036782,6.5809,189.35,189.28,7.82002121]
[1735243036989,6.5809,189.39,189.33,7.82002121]
[1735243037192,14.40092121,189.39,189.33,7.82002121]
[1735243038362,1.6398,189.41,189.26,0.79221571]
[1735243038363,7.82002121,189.4,189.34,7.82002121]
[1735243039084,7.82002121,189.41,189.34,7.82002121]
[1735243040456,13.13156618,189.43,189.36,7.82002121]
[1735243040650,20.0,189.4,189.36,7.82002121]
[1735243041650,7.82002121,189.43,189.37,7.82002121]
[1735243042170,7.82002121,189.43,189.36,7.82002121]
[1735243043467,7.82002121,189.43,189.37,7.82002121]
[1735243044757,7.82002121,189.44,189.37,7.82002121]
[1735243045759,7.82002121,189.44,189.38,7.82002121]
[1735243046459,20.0,189.44,189.38,7.82002121]
[1735243046661,7.82002121,189.45,189.38,7.82002121]
[1735243046861,6.5809,189.47,189.39,7.82002121]
[1735243046862,20.0,189.44,189.39,7.82002121]
[1735243047284,7.82002121,189.46,189.39,7.82002121]
[1735243048063,6.5809,189.47,189.4,7.82002121]
[1735243048264,7.82002121,189.47,189.41,7.82002121]
[1735243049163,6.51405886,189.48,189.39,1.5161]
[1735243049367,6.3624,189.52,189.42,7.82002121]
[1735243049568,7.82002121,189.49,189.42,7.82002121]
[1735243049994,7.82002121,189.48,189.42,7.82002121]
[1735243050503,7.82002121,189.49,189.42,7.82002121]
[1735243051693,6.3624,189.52,189.44,7.82002121]
[1735243051883,14.18242121,189.52,189.46,7.82002121]
[1735243052094,20.0,189.51,189.46,7.82002121]
[1735243053581,20.0,189.51,189.47,7.82002121]
[1735243054090,6.51405886,189.54,189.48,7.82002121]
[1735243054289,7.82002121,189.56,189.5,7.82002121]
[1735243056276,27.82002121,189.55,189.49,7.82002121]
[1735243056466,20.0,189.55,189.49,7.82002121]
[1735243056902,20.0,189.55,189.5,7.82002121]
[1735243057197,20.0,189.55,189.51,7.82002121]
[1735243057392,7.82002121,189.57,189.51,7.82002121]
[1735243057568,20.0,189.58,189.52,7.82002121]
[1735243057769,20.0,189.58,189.53,7.82002121]
[1735243057983,3.9648456,189.69,189.56,7.82002121]
[1735243058185,7.82002121,189.63,189.56,7.82002121]
[1735243058694,7.82002121,189.62,189.56,7.82002121]
[1735243059398,7.82002121,189.63,189.56,7.82002121]
[1735243061301,20.0,189.66,189.58,7.82002121]
[1735243061302,7.82002121,189.64,189.58,7.82002121]
[1735243062203,7.82002121,189.64,189.57,7.82002121]
[1735243063198,20.0,189.66,189.57,7.82002121]
[1735243063397,20.0,189.64,189.61,7.82002121]
[1735243063897,7.82002121,189.67,189.61,7.82002121]
[1735243064493,7.82002121,189.69,189.62,7.82002121]
[1735243065299,7.82002121,189.69,189.56,23.902374]
[1735243065300,7.82002121,189.69,189.63,7.82002121]
[1735243065503,20.0,189.66,189.63,7.82002121]
[1735243065703,20.0,189.66,189.62,7.82002121]
[1735243065877,7.82002121,189.69,189.63,7.82002121]
[1735243066079,7.82002121,189.69,189.62,7.82002121]
[1735243066293,27.82002121,189.65,189.56,0.12549]
[1735243066496,27.82002121,189.65,189.59,7.82002121]
[1735243066497,20.0,189.65,189.59,7.82002121]
[1735243066693,20.0,189.71,189.61,7.82002121]
[1735243066894,7.82002121,189.68,189.61,7.82002121]
[1735243068406,7.82002121,189.67,189.6,7.82002121]
[1735243069200,7.82002121,189.66,189.55,1.5338]
[1735243069402,7.82002121,189.63,189.57,7.82002121]
[1735243069585,7.82002121,189.63,189.56,7.82002121]
[1735243069990,7.82002121,189.6,189.55,1.5338]
[1735243070615,20.0,189.62,189.56,7.82002121]
[1735243070906,7.82002121,189.63,189.56,7.82002121]
[1735243071879,7.82002121,189.62,189.55,9.35382121]
[1735243073013,7.82002121,189.61,189.55,9.35382121]
[1735243073898,7.82002121,189.62,189.55,9.35382121]
[1735243074110,7.82002121,189.62,189.56,7.82002121]
[1735243075212,7.82002121,189.62,189.55,9.35382121]
[1735243076103,7.82002121,189.61,189.55,1.5338]
[1735243076298,7.82002121,189.6,189.55,1.5338]
[1735243076501,7.82002121,189.61,189.55,1.5338]
[1735243076895,20.0,189.66,189.55,1.5338]
[1735243077092,7.82002121,189.65,189.58,7.82002121]
[1735243077292,7.82002121,189.64,189.57,7.82002121]
[1735243077592,7.82002121,189.64,189.55,1.5338]
[1735243077791,7.82002121,189.61,189.55,1.5338]
[1735243078013,7.82002121,189.61,189.55,9.35382121]
[1735243079310,7.82002121,189.6,189.55,1.5338]
[1735243079894,7.82002121,189.61,189.55,1.5338]
[1735243080529,20.0,189.66,189.55,1.5338]
[1735243080530,7.82002121,189.6,189.55,1.5338]
[1735243080691,7.82002121,189.61,189.55,1.5338]
[1735243081017,20.0,189.66,189.55,1.5338]
[1735243081211,7.82002121,189.59,189.55,1.5338]
[1735243081512,7.82002121,189.59,189.52,7.82002121]
[1735243082018,23.776884,189.65,189.5,1.6189]
[1735243082019,7.82002121,189.58,189.5,1.6189]
[1735243082206,7.82002121,189.58,189.51,7.82002121]
[1735243082412,7.82002121,189.59,189.53,7.82002121]
[1735243083262,7.82002121,189.59,189.52,7.82002121]
[1735243083434,7.82002121,189.57,189.51,7.82002121]
[1735243084153,7.82002121,189.57,189.5,9.43892121]
[1735243084339,7.82002121,189.57,189.51,7.82002121]
[1735243084536,1.5496,189.64,189.52,7.82002121]
[1735243084537,7.82002121,189.58,189.52,7.82002121]
[1735243084844,7.82002121,189.59,189.52,7.82002121]
[1735243085141,7.82002121,189.58,189.52,7.82002121]
[1735243086438,7.82002121,189.57,189.5,9.43892121]
[1735243086638,7.82002121,189.58,189.51,7.82002121]
[1735243088949,7.82002121,189.57,189.5,9.43892121]
[1735243089161,7.82002121,189.56,189.5,1.6189]
[1735243089635,7.82002121,189.57,189.5,9.43892121]
[1735243090668,7.82002121,189.59,189.51,7.82002121]
[1735243091047,7.82002121,189.58,189.51,7.82002121]
[1735243091562,1.5496,189.64,189.53,7.82002121]
[1735243091763,7.82002121,189.6,189.53,7.82002121]
[1735243092061,7.82002121,189.59,189.52,7.82002121]
[1735243093644,7.82002121,189.56,189.5,1.6189]
[1735243094637,7.82002121,189.54,189.5,1.6189]
[1735243094834,7.82002121,189.53,189.46,7.82002121]
[1735243096550,31.28008484,189.6,189.45,1.5734]
[1735243096551,7.82002121,189.54,189.47,7.82002121]
[1735243096752,7.82002121,189.54,189.45,1.5734]
[1735243096753,7.82002121,189.55,189.48,7.82002121]
[1735243098073,6.2869,189.62,189.45,1.5734]
[1735243098074,7.82002121,189.56,189.49,7.82002121]
[1735243098369,7.82002121,189.57,189.5,7.82002121]
[1735243099774,7.82002121,189.56,189.49,7.82002121]
[1735243100286,7.82002121,189.54,189.47,7.82002121]
[1735243100448,7.82002121,189.51,189.45,1.5734]
[1735243101272,7.82002121,189.52,189.45,9.39342121]
[1735243101568,7.82002121,189.52,189.46,7.82002121]
[1735243101747,20.0,189.56,189.47,7.82002121]
[1735243101952,20.0,189.56,189.48,7.82002121]
[1735243101953,7.82002121,189.54,189.48,7.82002121]
[1735243103051,7.82002121,189.55,189.48,7.82002121]
[1735243104470,7.82002121,189.54,189.48,7.82002121]
[1735243104650,7.82002121,189.53,189.47,7.82002121]
[1735243106692,20.0,189.57,189.45,9.39342121]
[1735243106879,7.82002121,189.52,189.45,9.39342121]
[1735243108293,7.82002121,189.51,189.45,1.5734]
[1735243108498,7.82002121,189.48,189.45,1.5734]
[1735243109303,6.6582,189.54,189.4,9.38722121]
[1735243109304,7.82002121,189.47,189.4,9.38722121]
[1735243110087,7.82002121,189.47,189.41,7.82002121]
[1735243110487,7.82002121,189.48,189.41,7.82002121]
[1735243111091,6.6582,189.54,189.4,1.5672]
[1735243111092,7.82002121,189.47,189.4,1.5672]
[1735243111268,7.82002121,189.48,189.41,7.82002121]
[1735243113302,7.82002121,189.48,189.4,1.5672]
[1735243113480,7.82002121,189.44,189.4,1.5672]
[1735243118078,7.82002121,189.42,189.35,7.82002121]
[1735243118804,7.82002121,189.43,189.37,7.82002121]
[1735243119003,7.82002121,189.43,189.36,7.82002121]
[1735243119186,7.82002121,189.41,189.35,7.82002121]
[1735243119391,7.82002121,189.4,189.34,1.5672]
[1735243119999,7.82002121,189.41,189.34,9.38722121]
[1735243121917,7.82002121,189.41,189.34,1.5672]
[1735243122090,7.82002121,189.41,189.34,9.38722121]
[1735243123202,7.82002121,189.4,189.34,9.38722121]
[1735243123721,7.82002121,189.41,189.34,9.38722121]
[1735243125315,7.82002121,189.42,189.35,7.82002121]
[1735243125497,47.18008484,189.5,189.37,7.82002121]
[1735243125498,7.82002121,189.44,189.37,7.82002121]
[1735243125698,7.82002121,189.44,189.36,0.12549]
[1735243126006,7.82002121,189.44,189.37,7.82002121]
[1735243126204,7.82002121,189.44,189.38,7.82002121]
[1735243127199,7.82002121,189.45,189.38,7.82002121]
[1735243128416,7.82002121,189.44,189.38,7.82002121]
[1735243129420,7.82002121,189.44,189.37,7.82002121]
[1735243129922,7.82002121,189.43,189.36,7.94551121]
[1735243130420,7.82002121,189.44,189.36,0.12549]
[1735243130607,7.82002121,189.44,189.37,7.82002121]
[1735243131322,7.82002121,189.44,189.38,7.82002121]
[1735243133317,7.82002121,189.44,189.37,7.82002121]
[1735243133514,7.82002121,189.43,189.36,7.94551121]
[1735243133715,7.82002121,189.41,189.34,1.5672]
[1735243133910,7.82002121,189.43,189.36,7.82002121]
[1735243134106,7.82002121,189.44,189.37,7.82002121]
[1735243134822,7.82002121,189.43,189.36,7.82002121]
[1735243136326,7.82002121,189.42,189.35,7.94551121]
[1735243136532,20.0,189.46,189.37,7.82002121]
[1735243136709,7.82002121,189.43,189.36,7.82002121]
[1735243137223,20.0,189.47,189.36,7.82002121]
[1735243137427,7.82002121,189.44,189.37,7.82002121]
[1735243137927,7.82002121,189.43,189.36,7.82002121]
[1735243138527,7.82002121,189.44,189.37,7.82002121]
[1735243140134,7.82002121,189.43,189.36,7.82002121]
[1735243142827,7.82002121,189.43,189.35,7.94551121]
[1735243143127,7.82002121,189.43,189.36,7.82002121]
[1735243146835,20.0,189.47,189.36,7.82002121]
[1735243147014,7.82002121,189.43,189.36,7.82002121]
[1735243148537,7.82002121,189.42,189.36,7.82002121]
[1735243148737,7.82002121,189.42,189.35,7.94551121]
[1735243149039,7.82002121,189.42,189.36,7.82002121]
[1735243150238,7.82002121,189.43,189.36,7.82002121]
[1735243151347,7.82002121,189.42,189.35,7.82002121]
[1735243152028,7.82002121,189.41,189.34,1.5672]
[1735243152333,6.6036,189.46,189.3,7.82002121]
[1735243152334,7.82002121,189.37,189.3,7.82002121]
[1735243152719,7.82002121,189.36,189.29,9.42232121]
[1735243153225,7.82002121,189.34,189.29,1.6023]
[1735243154814,7.82002121,189.35,189.29,1.6023]
[1735243155024,7.82002121,189.38,189.31,7.82002121]
[1735243155220,6.6036,189.46,189.33,7.82002121]
[1735243155221,7.82002121,189.39,189.33,7.82002121]
[1735243155423,8.2583,189.46,189.36,7.82002121]
[1735243155655,7.82002121,189.43,189.36,9.37212121]
[1735243155845,6.6036,189.46,189.36,1.5521]
[1735243156045,7.82002121,189.43,189.37,7.82002121]
[1735243156552,6.16016997,189.47,189.4,7.82002121]
[1735243156853,7.82002121,189.45,189.38,7.82002121]
[1735243157424,7.82002121,189.44,189.37,7.94551121]
[1735243157624,7.82002121,189.43,189.36,9.37212121]
[1735243159765,7.82002121,189.44,189.37,7.82002121]
[1735243160148,7.82002121,189.43,189.36,9.37212121]
[1735243160961,7.82002121,189.43,189.36,1.5521]
[1735243161336,7.82002121,189.43,189.36,9.37212121]
[1735243161782,7.82002121,189.42,189.36,1.5521]
[1735243161947,7.82002121,189.4,189.36,1.5521]
[1735243162256,7.82002121,189.41,189.36,1.5521]
[1735243162459,7.82002121,189.4,189.36,1.5521]
[1735243162662,7.82002121,189.39,189.36,1.5521]
[1735243162960,7.82002121,189.39,189.32,9.35882121]
[1735243163959,7.82002121,189.38,189.32,1.5388]
[1735243166487,7.82002121,189.37,189.32,1.5388]
[1735243171574,7.82002121,189.38,189.32,1.5388]
[1735243176085,7.82002121,189.37,189.32,1.5388]
[1735243177379,7.82002121,189.34,189.28,7.82002121]
[1735243178277,7.82002121,189.35,189.28,7.82002121]
[1735243178480,7.82002121,189.34,189.28,7.82002121]
[1735243178677,7.82002121,189.34,189.27,9.33032121]
[1735243184490,20.0,189.37,189.27,9.33032121]
[1735243184701,7.82002121,189.36,189.3,7.82002121]
[1735243186382,7.82002121,189.35,189.29,7.82002121]
[1735243187100,7.82002121,189.35,189.28,0.12549]
[1735243187307,7.82002121,189.35,189.29,7.82002121]
[1735243187793,7.82002121,189.35,189.28,7.94551121]
[1735243188003,7.82002121,189.34,189.27,9.33032121]
[1735243188681,7.82002121,189.34,189.28,7.82002121]
[1735243189595,20.0,189.37,189.29,0.12549]
[1735243189903,7.82002121,189.4,189.34,7.82002121]
[1735243190200,7.82002121,189.41,189.34,7.82002121]
[1735243190395,7.82002121,189.42,189.35,7.82002121]
[1735243191202,7.82002121,189.41,189.34,9.36052121]
[1735243191401,7.82002121,189.42,189.36,7.82002121]
[1735243191598,7.82002121,189.44,189.37,7.82002121]
[1735243191790,7.82002121,189.44,189.38,7.82002121]
[1735243192302,7.82002121,189.44,189.37,7.82002121]
[1735243193504,7.82002121,189.43,189.36,7.82002121]
[1735243195509,7.82002121,189.41,189.35,7.94551121]
[1735243196324,20.0,189.45,189.38,7.82002121]
[1735243196498,7.82002121,189.42,189.36,7.82002121]
[1735243196792,7.82002121,189.42,189.35,7.94551121]
[1735243196996,7.82002121,189.41,189.34,9.36052121]
[1735243198300,7.82002121,189.41,189.35,7.82002121]
[1735243198998,7.82002121,189.4,189.34,1.5405]
[1735243199201,7.82002121,189.36,189.29,1.6013]
[1735243199532,7.82002121,189.35,189.29,9.42132121]
[1735243199923,7.82002121,189.35,189.29,1.6013]
[1735243200313,7.82002121,189.31,189.23,1.6013]
[1735243200513,7.82002121,189.3,189.24,23.902374]
[1735243200715,7.82002121,189.31,189.25,7.82002121]
[1735243202204,7.82002121,189.28,189.23,1.6013]
[1735243203541,6.4321,189.34,189.26,7.82002121]
[1735243203718,6.4321,189.34,189.23,1.6013]
[1735243203719,7.82002121,189.34,189.28,7.82002121]
[1735243203918,7.82002121,189.35,189.28,7.82002121]
[1735243204744,7.82002121,189.33,189.27,7.82002121]
[1735243204928,7.82002121,189.3,189.24,7.82002121]
[1735243205133,7.82002121,189.3,189.23,9.42132121]
[1735243205655,20.0,189.35,189.23,9.42132121]
[1735243205656,7.82002121,189.29,189.23,9.42132121]
[1735243205947,7.82002121,189.27,189.23,1.6013]
[1735243206130,7.82002121,189.27,189.21,65.50879765]
[1735243206745,7.82002121,189.25,189.21,57.68877644]
[1735243206930,7.82002121,189.23,189.18,1.6013]
[1735243207133,7.82002121,189.22,189.15,7.82002121]
[1735243207335,7.82002121,189.21,189.15,7.82002121]
[1735243207847,20.0,189.27,189.19,7.82002121]
[1735243208034,7.82002121,189.26,189.2,7.82002121]
[1735243208220,7.82002121,189.25,189.14,23.902374]
[1735243208425,7.82002121,189.25,189.19,7.82002121]
[1735243208751,20.0,189.27,189.19,7.82002121]
[1735243208932,7.82002121,189.26,189.19,7.82002121]
[1735243210147,12.20866414,189.26,189.19,12.20866414]
[1735243211556,12.20866414,189.26,189.14,23.902374]
[1735243211557,12.20866414,189.27,189.2,12.20866414]
[1735243212051,1.5011,189.33,189.26,12.20866414]
[1735243212239,12.20866414,189.34,189.27,12.20866414]
[1735243212443,6.4321,189.36,189.25,12.20866414]
[1735243212444,12.20866414,189.32,189.25,12.20866414]
[1735243212659,12.20866414,189.33,189.26,12.20866414]
[1735243213352,12.20866414,189.31,189.24,12.20866414]
[1735243213562,12.20866414,189.33,189.26,12.20866414]
[1735243214134,12.20866414,189.35,189.28,12.20866414]
[1735243214452,18.64076414,189.36,189.29,12.20866414]
[1735243214655,12.20866414,189.35,189.28,12.20866414]
[1735243214952,6.4321,189.36,189.27,12.20866414]
[1735243214953,12.20866414,189.33,189.27,12.20866414]
[1735243215356,12.20866414,189.34,189.27,12.20866414]
[1735243215538,12.20866414,189.36,189.29,12.20866414]
[1735243215742,12.20866414,189.37,189.3,12.20866414]
[1735243216144,12.20866414,189.36,189.29,12.20866414]
[1735243216444,12.20866414,189.34,189.27,12.20866414]
[1735243216643,12.20866414,189.33,189.26,12.20866414]
[1735243216949,1.5011,189.38,189.26,12.20866414]
[1735243216950,12.20866414,189.32,189.26,12.20866414]
[1735243217257,12.20866414,189.33,189.26,12.20866414]
[1735243218250,12.20866414,189.34,189.27,12.20866414]
[1735243220658,12.20866414,189.34,189.28,12.20866414]
[1735243220856,12.20866414,189.34,189.27,12.20866414]
[1735243222354,12.20866414,189.33,189.26,12.20866414]
[1735243223756,12.20866414,189.31,189.24,12.20866414]
[1735243224663,12.20866414,189.32,189.25,12.20866414]
[1735243224870,12.20866414,189.33,189.27,12.20866414]
[1735243225083,12.20866414,189.34,189.27,12.20866414]
[1735243225658,12.20866414,189.33,189.27,12.20866414]
[1735243225859,12.20866414,189.33,189.26,12.20866414]
[1735243226558,12.20866414,189.31,189.24,12.20866414]
[1735243226740,12.20866414,189.33,189.26,12.20866414]
[1735243226944,12.20866414,189.36,189.29,12.20866414]
[1735243227143,12.20866414,189.37,189.3,12.20866414]
[1735243228062,18.40406414,189.39,189.32,12.20866414]
[1735243228267,6.1954,189.39,189.33,12.20866414]
[1735243229264,18.40406414,189.39,189.33,12.20866414]
[1735243230144,13.99813455,189.39,189.32,7.80273455]
[1735243232765,7.80273455,189.38,189.31,7.80273455]
[1735243233878,7.80273455,189.37,189.3,7.80273455]
[1735243235768,6.1954,189.39,189.3,7.80273455]
[1735243235769,7.80273455,189.36,189.3,7.80273455]
[1735243237261,7.80273455,189.37,189.3,7.80273455]
[1735243237568,7.80273455,189.37,189.31,7.80273455]
[1735243237775,7.80273455,189.38,189.31,7.80273455]
[1735243238666,13.99813455,189.39,189.32,7.80273455]
[1735243239473,13.99813455,189.39,189.29,23.902374]
[1735243239474,6.1954,189.39,189.33,23.902374]
[1735243239667,1.5044,189.43,189.37,7.80273455]
[1735243240075,14.42303455,189.44,189.37,7.80273455]
[1735243240279,1.5044,189.48,189.4,7.80273455]
[1735243240280,8.1247,189.48,189.4,7.80273455]
[1735243240455,7.80273455,189.47,189.4,7.80273455]
[1735243240980,7.80273455,189.47,189.32,0.79194116]
[1735243241287,7.80273455,189.44,189.37,7.80273455]
[1735243241784,8.1247,189.48,189.29,13.2066]
[1735243241785,7.80273455,189.42,189.29,20.0]
[1735243241990,7.80273455,189.42,189.35,7.80273455]
[1735243244475,7.80273455,189.42,189.28,2.30236883]
[1735243244675,7.80273455,189.42,189.29,20.0]
[1735243244879,7.80273455,189.42,189.35,7.80273455]
[1735243245575,20.0,189.45,189.39,7.80273455]
[1735243245898,27.80273455,189.45,189.38,7.80273455]
[1735243246191,7.80273455,189.42,189.35,7.80273455]
[1735243246794,7.80273455,189.43,189.36,7.80273455]
[1735243247992,7.80273455,189.44,189.37,7.80273455]
[1735243248376,7.80273455,189.43,189.36,7.80273455]
[1735243248574,20.0,189.45,189.38,7.80273455]
[1735243248786,7.80273455,189.47,189.4,7.80273455]
[1735243249180,7.80273455,189.46,189.39,7.80273455]
[1735243249484,7.80273455,189.47,189.4,7.80273455]
[1735243250972,8.1247,189.48,189.41,7.80273455]
[1735243250973,15.92743455,189.48,189.41,7.80273455]
[1735243251380,7.80273455,189.47,189.4,7.80273455]
[1735243251693,15.92743455,189.48,189.41,7.80273455]
[1735243251997,15.92743455,189.48,189.4,7.80273455]
[1735243254313,15.92743455,189.48,189.41,7.80273455]
[1735243254487,14.42303455,189.48,189.41,7.80273455]
[1735243256978,6.6203,189.48,189.41,7.80273455]
[1735243258209,6.6203,189.48,189.42,7.80273455]
[1735243258417,7.80273455,189.46,189.36,23.902374]
[1735243258589,7.80273455,189.43,189.36,7.80273455]
[1735243258915,7.80273455,189.4,189.31,3.58968049]
[1735243259116,7.80273455,189.39,189.32,7.80273455]
[1735243259436,7.80273455,189.37,189.26,1.5026]
[1735243259728,7.80273455,189.37,189.31,7.80273455]
[1735243259879,7.80273455,189.37,189.27,23.902374]
[1735243260078,7.80273455,189.37,189.26,1.5026]
[1735243260079,7.80273455,189.37,189.3,7.80273455]
[1735243260289,7.80273455,189.36,189.29,7.80273455]
[1735243261011,9.33373455,189.39,189.32,7.80273455]
[1735243261306,7.80273455,189.36,189.29,7.80273455]
[1735243261507,20.0,189.37,189.28,7.80273455]
[1735243261508,7.80273455,189.34,189.28,7.80273455]
[1735243261811,7.80273455,189.35,189.29,7.80273455]
[1735243262299,12.1966787,189.33,189.27,12.1966787]
[1735243262490,12.1966787,189.33,189.26,12.1966787]
[1735243262692,12.1966787,189.36,189.29,12.1966787]
[1735243262891,32.1966787,189.37,189.3,12.1966787]
[1735243263092,13.7276787,189.39,189.32,12.1966787]
[1735243263300,1.531,189.39,189.34,12.1966787]
[1735243264206,1.531,189.39,189.33,12.1966787]
[1735243264625,1.531,189.39,189.34,12.1966787]
[1735243266125,1.531,189.39,189.35,12.1966787]
[1735243266322,6.5986,189.4,189.36,12.1966787]
[1735243267430,6.5986,189.4,189.35,12.1966787]
[1735243268533,6.5986,189.4,189.34,12.1966787]
[1735243272139,6.5986,189.4,189.3,2.47738973]
[1735243272140,6.5986,189.4,189.36,12.1966787]
[1735243272334,8.2796,189.44,189.38,12.1966787]
[1735243272533,6.6658,189.44,189.41,12.1966787]
[1735243272739,8.2796,189.48,189.42,12.1966787]
[1735243272938,8.2796,189.48,189.43,12.1966787]
[1735243273238,6.6658,189.48,189.45,12.1966787]
[1735243275620,6.4946,189.52,189.47,12.1966787]
[1735243275943,6.4946,189.52,189.48,12.1966787]
[1735243276246,18.6912787,189.56,189.49,12.1966787]
[1735243277240,12.1966787,189.55,189.48,12.1966787]
[1735243278864,18.6912787,189.56,189.49,12.1966787]
[1735243279227,1.5279,189.58,189.52,12.1966787]
[1735243279558,18.6912787,189.6,189.53,12.1966787]
[1735243279725,12.1966787,189.59,189.52,12.1966787]
[1735243279928,18.6912787,189.6,189.53,12.1966787]
[1735243281523,12.1966787,189.56,189.49,12.1966787]
[1735243281828,12.1966787,189.58,189.51,12.1966787]
[1735243282541,12.1966787,189.55,189.48,12.1966787]
[1735243282849,18.6912787,189.6,189.44,0.79130921]
[1735243282850,12.1966787,189.54,189.47,12.1966787]
[1735243284151,12.1966787,189.55,189.48,12.1966787]
[1735243285148,12.1966787,189.57,189.5,12.1966787]
[1735243286555,12.1966787,189.55,189.48,12.1966787]
[1735243286863,12.1966787,189.56,189.49,12.1966787]
[1735243287063,12.1966787,189.54,189.48,12.1966787]
[1735243287364,12.1966787,189.55,189.45,0.12549]
[1735243287659,12.1966787,189.56,189.49,12.1966787]
[1735243287871,18.2704787,189.51,189.44,12.1966787]
[1735243288158,12.1966787,189.49,189.43,12.1966787]
[1735243288361,12.1966787,189.5,189.44,12.1966787]
[1735243288535,12.1966787,189.5,189.38,2.4335653]
[1735243288536,12.1966787,189.5,189.43,12.1966787]
[1735243288738,12.1966787,189.46,189.33,1.6419]
[1735243289057,12.1966787,189.44,189.37,12.1966787]
[1735243289466,12.1966787,189.5,189.37,12.1966787]
[1735243289467,12.1966787,189.43,189.37,12.1966787]
[1735243290066,12.1966787,189.43,189.34,23.776884]
[1735243290239,12.1966787,189.5,189.34,12.1966787]
[1735243290240,18.2704787,189.41,189.34,12.1966787]
[1735243290440,18.2704787,189.41,189.35,12.1966787]
[1735243291765,12.1966787,189.4,189.33,12.1966787]
[1735243291943,6.0738,189.41,189.34,12.1966787]
[1735243291944,18.2704787,189.41,189.34,12.1966787]
[1735243292646,12.1966787,189.4,189.33,12.1966787]
[1735243292856,12.1966787,189.38,189.32,12.1966787]
[1735243293365,12.1966787,189.39,189.32,12.1966787]
[1735243294639,12.1966787,189.37,189.31,12.1966787]
[1735243295046,12.1966787,189.37,189.3,12.1966787]
[1735243295964,12.1966787,189.35,189.28,12.1966787]
[1735243296266,12.1966787,189.34,189.28,12.1966787]
[1735243296451,12.1966787,189.34,189.26,23.776884]
[1735243296452,12.1966787,189.33,189.26,12.1966787]
[1735243296652,18.2704787,189.31,189.25,12.1966787]
[1735243296853,12.1966787,189.3,189.24,12.1966787]
[1735243297569,6.0738,189.31,189.25,12.1966787]
[1735243297940,6.0738,189.31,189.2,36.0990527]